Cogmind - Beta 17 @@@ ROGUE MODE // 2026.06.27 @ 20:15:00 Player: rz Result: Destroyed by 6P-2M0(R) with Subdweller Laser Performance ------------- Evolutions (0) 0 Regions Visited (2) 400 Robots Destroyed (33) 165 Value Destroyed (662) 662 Prototype IDs (0) 0 Alien Tech Used (0) 0 Bonus (0) 0 TOTAL SCORE: 1227 Bonus ------- None Cogmind --------- Core Integrity 0/250 Matter 77/300 Energy 83/100 System Corruption 1% Temperature Cool (6) Movement Walking (190) Ox1 Location -10/Subcaves Parts ------- > --- POWER (1) -------- (None) > --- PROPULSION (2) --- Aluminum Leg Aluminum Leg > --- UTILITY (2) ------ Large Storage Unit Signal Interpreter > --- WEAPON (2) ------- Assault Rifle Light Assault Rifle > --- INVENTORY (15) --- Aluminum Leg Aluminum Leg Aluminum Leg Large Storage Unit Sensor Array Targeting Computer Light Armor Plating Light Armor Plating Assault Rifle Mining Laser Peak State ------------ > --- POWER ------------ Light Ion Engine > --- PROPULSION ------- Light Treads Light Treads > --- UTILITY ---------- Large Storage Unit Signal Interpreter > --- WEAPON ----------- Grenade Launcher Mining Laser > --- INVENTORY -------- Aluminum Leg Large Storage Unit Sensor Array Light Armor Plating Light Armor Plating Assault Rifle Assault Rifle Assault Rifle Light Assault Rifle Grenade Launcher [Rating: 8] Favorites ----------- Power Light Ion Engine Engine Light Ion Engine Propulsion Light Treads Treads Light Treads Leg Aluminum Leg Wheel Compact Wheel Utility Large Storage Unit Storage Large Storage Unit Processor Signal Interpreter Protection Light Armor Plating Weapon Assault Rifle Ballistic Gun Assault Rifle Launcher Grenade Launcher Special Weapon Mining Laser Build | -11 -10 -10 ------- Run | Yrd Mat Sub Slots Evolved . | . . . Power . | . . . Propulsion . | . . . Utility . | . . . Weapon . | . . . Parts Attached 18 | 6 9 3 Power 2 | 1 1 . Engine 2 | 1 1 . Core . | . . . Reactor . | . . . Propulsion 5 | 2 1 2 Treads 2 | 2 . . Leg 2 | . . 2 Wheel 1 | . 1 . Hover . | . . . Flight . | . . . Utility 4 | 1 3 . Device . | . . . Storage 2 | 1 1 . Processor 1 | . 1 . Hackware . | . . . Protection 1 | . 1 . Artifact . | . . . Weapon 7 | 2 4 1 Energy Gun . | . . . Energy Cannon . | . . . Ballistic Gun 4 | 2 2 . Ballistic Cannon . | . . . Launcher 2 | . 1 1 Special Weapon 1 | . 1 . Impact Weapon . | . . . Slashing Weapon . | . . . Piercing Weapon . | . . . Special Melee Weapon . | . . . Unidentified Prototypes . | . . . Parts Lost 7 | . 2 5 Power 2 | . 1 1 Propulsion 2 | . 1 1 Utility . | . . . Weapon 3 | . . 3 Highest Loss Streak 4 | . 1 4 To Critical Strikes 1 | . . 1 Average Backups 11 | . 10 12 Power . | . . . Propulsion 2 | . 2 3 Utility 4 | . 3 5 Weapon 4 | . 4 4 Tool/Special . | . . . Unused Backups 11 | . 3 8 Power . | . . . Propulsion 5 | . 2 3 Utility 6 | . 1 5 Weapon . | . . . Tool/Special . | . . . Average Slot Usage (%) 84 | . 90 78 Engine 8 | . 13 3 Treads 14 | . 24 3 Leg 9 | . . 20 Wheel 2 | . . 3 Storage 14 | . 14 14 Processor 10 | . 7 14 Ballistic Gun 11 | . 18 4 Launcher 11 | . 8 13 Peak Build Rating 8 | 6 8 8 Average Rating 6 | 4 6 6 On Entrance 4 | . 6 8 Avg Prop Armor Cover (%) 12 | . 12 12 Naked Turns . | . . . Heaviest Build 28 | 12 28 28 Greatest Support 40 | 40 40 20 Greatest Overweight (x) 1 | . 1 1 Average Overweight (x) . | . . 1 Largest Inventory Capacity 15 | 8 15 15 Average Capacity 13 | 7 12 15 Most Carried 15 | 1 15 15 Average Carried 11 | . 10 12 Final Capacity 15 | 8 15 15 Final Carried 15 | 1 15 10 Class Distribution -------------------- 100% | Mutant Dominant Class ---------------- Mutant | -10/Materials Mutant | -10/Subcaves Resources | -11 -10 -10 ----------- Run | Yrd Mat Sub Matter Collected 730 | 188 454 88 Remotely . | . . . Salvage Created 722 | 151 527 44 Parts 50 | 15 35 . Haulers Intercepted 1 | . 1 . Recyclers Shooed . | . . . Parts Field Recycled . | . . . Retrieved Matter . | . . . Parts Self-Destructed 17 | . . 17 Prevented . | . . . Parts Restored . | . . . Kills | -11 -10 -10 ------- Run | Yrd Mat Sub Combat Hostiles Destroyed 21 | . 18 3 Guns 11 | . 11 . AOE 10 | . 7 3 Classes Destroyed 9 | 2 6 1 Worker 2 | . 2 . Tunneler 5 | 4 1 . Hauler 1 | . 1 . Recycler 1 | 1 . . Operator 1 | . 1 . Watcher 2 | . 2 . Swarmer 9 | . 9 . Grunt 9 | . 9 . Subdweller 3 | . . 3 Best Kill Streak 9 | 5 9 3 Combat Bots Only 6 | . 6 3 Max Kills in Single Turn 2 | 2 2 1 Gunslinging . | . . . Exploded 2 | . 2 1 Melee . | . . . Uniques/NPCs Destroyed . | . . . Combat | -11 -10 -10 -------- Run | Yrd Mat Sub Hostile Shots Fired 107 | . 86 21 Missed 33 | . 26 7 Hits 74 | . 60 14 Projectile 74 | . 60 14 Critical Strikes 2 | . 1 1 Damage Taken 1122 | . 607 515 Core 250 | . 105 145 Absorbed by Shields . | . . . Core Remaining (%) 100 | 100 . . Volleys Fired 73 | 6 56 11 Largest 2 | 2 2 2 Hottest 100 | 40 100 60 Shots Fired 126 | 12 95 19 Gun 99 | 12 79 8 Cannon . | . . . Launcher 26 | . 15 11 Special 1 | . 1 . Kinetic 99 | 12 79 8 Thermal 1 | . 1 . Explosive 26 | . 15 11 Electromagnetic . | . . . Robot Hit Streak 15 | 5 5 15 Robot Miss Streak 5 | 1 5 1 Penetration Max . | . . . Secondary Targets 3 | . 3 . Max Gunslinging Chain 1 | . 1 . Shots Hit Robots 69 | 8 47 14 Core Hits 55 | 5 44 6 Critical Kills 1 | 1 . . Critical Parts Destroyed 1 | . 1 . Critical Strikes 2 | 1 1 . Destroy 2 | 1 1 . Melee Attacks . | . . . Impact . | . . . Slashing . | . . . Piercing . | . . . Sneak Attacks . | . . . Combat Hostiles . | . . . Follow-up Attacks . | . . . Damage Inflicted 1899 | 112 1157 630 Guns 728 | 112 549 67 Cannons . | . . . Explosions 1171 | . 608 563 Melee . | . . . Ramming . | . . . Kinetic 728 | 112 549 67 Thermal . | . . . Explosive 1086 | . 523 563 Electromagnetic 85 | . 85 . Impact . | . . . Slashing . | . . . Piercing . | . . . Highest Corruption 1 | . 1 1 Average Corruption 1 | . 1 1 Corruption Purged . | . . . Corruption Blocked . | . . . Effects 11 | . 3 8 Matter Fused 1 | . . 1 Heat Flow Errors 5 | . 2 3 Energy Discharges 1 | . . 1 Parts Rejected 1 | . . 1 Parts Fused 1 | . . 1 Data Loss (minor) 1 | . 1 . Data Loss (major) 1 | . . 1 Overload Shots . | . . . Overflow Damage 16 | . 10 6 Projectiles . | . . . Explosions 16 | . 10 6 Melee . | . . . Knockbacks . | . . . Impact . | . . . Kinetic . | . . . Secondary . | . . . Self-Inflicted Damage 209 | . 90 119 Shots 11 | . 5 6 Rammed . | . . . Targets Rammed . | . . . Kicked . | . . . Crushed . | . . . Highest Temperature 278 | . 278 210 Average Temperature 87 | . 83 94 Received Heat Transfer 117 | . 87 30 Siege Activations . | . . . Martial Activations . | . . . Shielding Activations . | . . . Robots Disrupted . | . . . Combat Hostiles . | . . . Robots Corrupted . | . . . Combat Hostiles . | . . . Parts Fried . | . . . Impact Corruptions . | . . . Robots Melted . | . . . Combat Hostiles . | . . . Parts Melted . | . . . Heat Transferred . | . . . Parts Sabotaged . | . . . Parts Stolen . | . . . Parts Stripped . | . . . Power Chain Reactions . | . . . Alert | -11 -10 -10 ------- Run | Yrd Mat Sub Maximum Alert Level 1 | . 1 . Low Security (%) 88 | 100 87 . Level 1 11 | . 12 . Level 2 . | . . . Level 3 . | . . . Level 4 . | . . . Level 5 . | . . . High Security . | . . . Max Security . | . . . Peak Influence 239 | 20 239 . Initial 9 | . 9 . Average 96 | 4 103 . Influence Increases 648 | 25 623 . Destroy 0b10 Robot/C 360 | . 360 . Destroy 0b10 Robot/NC 60 | 25 35 . Destroy Leader 66 | . 66 . Disable Machine 60 | . 60 . Destroy Structure 72 | . 72 . Lose Combat Pursuer 30 | . 30 . Influence Decreases 648 | 10 469 169 Entered New Map 88 | . 6 82 Time Decay 540 | 10 443 87 Lost Part 20 | . 20 . Squads Dispatched 2 | . 2 . Investigation 1 | . 1 . Extermination . | . . . Reinforcement 1 | . 1 . Assault . | . . . Garrison . | . . . Intercept . | . . . Searches Triggered . | . . . Construction Impeded . | . . . Haulers Reinforced . | . . . Active Scanning Responses . | . . . Cargo Convoy Interrupts . | . . . Stealth | -11 -10 -10 --------- Run | Yrd Mat Sub Distress Signals 6 | . 6 . Communications Jammed . | . . . Distress Signals . | . . . Times Spotted 29 | . 25 4 Peak Tracking Total 7 | . 7 2 Tactical Retreats 2 | . 2 . Traps | -11 -10 -10 ------- Run | Yrd Mat Sub Traps Triggered 4 | . 2 2 Indirectly . | . . . Trap Hack Attempts . | . . . Triggered . | . . . Disarmed . | . . . Reprogrammed . | . . . Reused . | . . . Traps Extracted . | . . . Installed . | . . . Triggered . | . . . Machines | -11 -10 -10 ---------- Run | Yrd Mat Sub Machines Disabled 4 | . 4 . Max in Single Turn 1 | . 1 . Machines Repaired . | . . . Machines Dismantled . | . . . Machines Sabotaged . | . . . Overloaded Fab Kills . | . . . Hacking | -11 -10 -10 --------- Run | Yrd Mat Sub Machines Accessed 1 | . 1 . Terminals . | . . . Fabricators . | . . . Repair Stations . | . . . Recycling Units 1 | . 1 . Scanalyzers . | . . . Garrison Access . | . . . Total Hacks 2 | . 2 . Successful 1 | . 1 . Failed 1 | . 1 . Catastrophic . | . . . Database Lockouts . | . . . Manual . | . . . Terminals . | . . . Fabricators . | . . . Repair Stations . | . . . Recycling Units 2 | . 2 . Scanalyzers . | . . . Garrison Access . | . . . Terminal Hacks . | . . . Fabricator Hacks . | . . . Repair Station Hacks . | . . . Recycling Unit Hacks 1 | . 1 . Retrieve Components 1 | . 1 . Scanalyzer . | . . . Garrison Access Hacks . | . . . Unauthorized Hacks . | . . . Terminals . | . . . Fabricators . | . . . Repair Stations . | . . . Recycling Units . | . . . Scanalyzers . | . . . Garrison Access . | . . . Data Cores Recovered . | . . . Used . | . . . Hacking Detections 1 | . 1 . Full Trace Events . | . . . Feedback Events . | . . . Feedback Blocked . | . . . Robot Schematics Acquired . | . . . Robots Built . | . . . Authchips . | . . . Time . | . . . Total Robot Build Rating . | . . . Part Schematics Acquired . | . . . Parts Built . | . . . Authchips . | . . . Time . | . . . Total Part Build Rating . | . . . Part Studies Acquired . | . . . Parts Repaired . | . . . Time . | . . . Parts Recycled . | . . . Recycled Matter . | . . . Retrieved Matter . | . . . Retrieved Components 1 | . 1 . Parts Scanalyzed . | . . . Part Schematics Acquired . | . . . Parts Damaged . | . . . Bothacking | -11 -10 -10 ------------ Run | Yrd Mat Sub Used RIF Installer . | . . . Robots Hacked . | . . . Non-combat . | . . . Combat . | . . . Robot Hacks Applied . | . . . Relay Couplers Released . | . . . Fabnet Peak Effective % . | . . . Robots Rewired . | . . . Allies Hacked . | . . . Hacks Repelled . | . . . Allies | -11 -10 -10 -------- Run | Yrd Mat Sub Total Allies . | . . . Largest Group . | . . . Highest-Rated Group . | . . . Highest-Rated Ally . | . . . Total Orders . | . . . Ally Attacks . | . . . Total Damage . | . . . Kills . | . . . Allies Corrupted . | . . . Allies Melted . | . . . Intel | -11 -10 -10 ------- Run | Yrd Mat Sub Active Infowar (turns) . | . . . Robot Analysis Total . | . . . Derelict Logs Recovered . | . . . Drone Launches . | . . . Drone Recoveries . | . . . Exploration | -11 -10 -10 ------------- Run | Yrd Mat Sub Turns Passed 2321 | 78 1171 1072 Spaces Moved 1201 | 36 540 625 Core 6 | 6 . . Treads 511 | 30 481 . Legs 391 | . . 391 Wheels 293 | . 59 234 Hover . | . . . Flight . | . . . Fastest Speed 50 | 50 115 115 Average Speed 164 | 141 168 161 Slowest Speed 240 | 160 240 190 Overloaded Moves . | . . . Propulsion Burnouts . | . . . Robots Hopped . | . . . Potential Cave-ins . | . . . Cave-ins Triggered . | . . . Exploration Rate (%) 44 | 4 98 30 Regions Visited 2 Branch Regions 1 Pre-discovered Areas . | . . . Known Exits Taken 1 | . 1 . Unknown Exits Taken 1 | 1 . . Scrap Searched . | . . . Spaces Dug 7 | . 7 . Terrain Destroyed 120 | . 70 50 Melee . | . . . Projectile . | . . . AOE 120 | . 70 50 Terrain Rammed . | . . . Walls Destroyed . | . . . Machines Disabled . | . . . Actions | -11 -10 -10 --------- Run | Yrd Mat Sub Total 1413 | 48 700 665 Wait 93 | . 69 24 Move 1199 | 35 539 625 Hop . | . . . Pick Up 20 | 1 19 . Fast Attach 10 | 6 4 . Attach 6 | . 1 5 Detach . | . . . Swap 7 | . 7 . Drop 5 | . 5 . Fire 73 | 6 56 11 Melee . | . . . Ram . | . . . Kick . | . . . Crush . | . . . Escape Stasis . | . . . Rewire . | . . . Trap . | . . . Miscellaneous . | . . . Route ------- -11/Scrapyard -10/Materials (discovered 5 exits: *Mat x3 / *Min / *Sub) -10/Subcaves (discovered 1 exit: *Mat) History --------- Turn | Location | Event 11 | -11/Scrapyard | Discovered new exit (range 15) 79 | -11/Scrapyard | Entered Materials 307 | -10/Materials | Build established: Mutant 455 | -10/Materials | Discovered new exit (range 14) 531 | -10/Materials | Discovered new exit (range 8) 623 | -10/Materials | Discovered new exit (range 13) 661 | -10/Materials | Identified exit to Mines 737 | -10/Materials | Discovered new exit (range 12) 774 | -10/Materials | Identified exit to Materials 972 | -10/Materials | Discovered exit to Materials (range 16) 1247 | -10/Materials | Identified exit to Subcaves 1250 | -10/Materials | Entered Subcaves 1251 | -10/Subcaves | Approached by a straggling Scientist 1504 | -10/Subcaves | Core integrity fell below 50% 1533 | -10/Subcaves | Core integrity fell below 20% 1536 | -10/Subcaves | Ambushed by Subdweller buried in earth 1574 | -10/Subcaves | Lost 4 parts (1p1n2w) 1911 | -10/Subcaves | A swath of the cavern ceiling suddenly collapsed 2248 | -10/Subcaves | Discovered new exit (range 5) 2253 | -10/Subcaves | Identified exit to Materials 2322 | -10/Subcaves | Destroyed by 6P-2M0(R) with Subdweller Laser Last Messages --------------- 5A-FZV(c): "I think it's somewhere west of here" 01990_ CG-DQT(u) tweaks Twisted Machinery. 5A-FZV(c): "I think it's somewhere west of here" 02090_ System corrupted: Heat flow error (+253). 5A-FZV(c): "I think it's somewhere west of here" 02130_ Acquired 24 matter. 5A-FZV(c): "I think it's somewhere west of here" 02191_ System corrupted: Substantial component data lost. 5A-FZV(c): "I think it's somewhere west of here" 02248_ EXIT=FOUND 02253_ EXIT=IDENTIFIED: MATERIALS 5A-FZV(c): "I think it's somewhere west of here" 02314_ System corrupted: Heat flow error (+219). 02314_ 5A-FZV(c) destroyed. 02318_ Grenade Launcher destroyed. 02320_ Subatomizers dissect the Tech Extrapolator. 02322_ The unstable cave ceiling collapses. Map ----- +----------------------------------------------------+ | ?????????????????????????????????????????????????? | | ?????????????????????????????????????????????????? | | ?????????????????????????????????????????????????? | | ?????????????????????????????????????????????????? | | ?????????????????????????????????????????????????? | | ?????????????????????????????????????????????????? | | ???????????????????????????????? ## ?????????????? | | ??????????????????????????????# ?????????????? | | ??????????????????????????????# %????????????? | | ??????????????????????????????# ????????????? | | ??????????????????????????????? ????????????? | | ???????????????????????????????? ????????????? | | ????????????????????????????????? ????????????? | | ?????????????????????????????????? #???????????? | | ??????????????????????????????????? ##?????????? | | ???????????????????????????????????# ##????????? | | ???????????????????????????????????# ##???????? | | ???????????????????????????????????# #???????? | | ????????????????????????????????????# #???????? | | ??????#####?????????????????????????## #????????? | | ????### ###????????????????????### #????????? | | ???? #??????####?######### # ##???????? | | ??? ####### ## #=# # #???????? | | ?? # # R ###???????? | | # ## ! ## < #?????????? | | # #??## % @ ### #????????? | | #????### ## ##?## #????????? | | #??????# # ?# #???## ##????????? | | #???????### ## ### ## #???# #?????????? | | ??????????#####?# #### #? # #???# #?????????? | | ???###???## ?## ##### ######???# #?????????? | | #??# ##?# ### ##?## #????????## ?????????? | | #??# ### ## #?? ???????????? #????????? | | #???# ##?#????????????? ##????????? | | #???# ##???????????????? #?????????? | | #??## ####?????????????????##?????????? | | #### ## # ##???????????????????????????? | | # #### ##????????####??????????????? | | ## ##??## ##???????#""#?##???????????? | | ?## ##????# ## ##??????#"## ##??????????? | | #### #?????# #### #?????##"#### ##?????????? | | ### #?????###?# #######&""""# ??????????? | | ## ##??????### ##"######????????????? | | #??????# &"""##?????????????? | | #??????# ## #""#"#?????????????? | | ## ###?????## ### ### #"""##?????????????? | | ?######??????## ### ##?####""##??###????????? | | ?????????????# ##?????# # ### ##???????? | | ????????????#""""" "####??## #???????? | | ???????????# " ##" "" ##?# #???????? | +----------------------------------------------------+ Best States ------------- Heat Dissipation 25 Energy Generation 10 Energy Capacity 125 Matter Stores 300 Matter Capacity 300 Sight Range 16 Terrain Scan Density 10 Armor Coverage 150 Evasion (%) 40 Recoil Reduction 2 Item Schematics ----------------- None Robot Schematics ------------------ None Fabricated ------------ Nothing Repaired ---------- Nothing Studied --------- None Alien Tech Used ----------------- None Achievements -------------- None Challenges ------------ None Game ------ Seed ShieldComponentGun Manual? 0 Play Time 00:14:57 Cumulative 66.1 hours Start 2026.06.27 @ 20:01:59 End 2026.06.27 @ 20:15:00 Sessions 1 Manual Loads 0 Difficulty Rogue Special Mode None Game No. 75 Rogue 21 Adventurer 54 Explorer 0 Win Type - Total 1 Types 1/0/0/0/0/0/0/0/0/0 Lore% 32 Gallery% 40 Achievement% 38 Wizard Run 0 Options --------- Layout 1 ASCII 0 Keyboard 0 Movement Mouse Keybinds 1 Fullscreen 1 Font 24/Terminus Map View 50x35 Zoom Use 0% Tactical HUD 1 Map Filters NONE Filters NONE Steam 1 RUN: 85c89f35-b41e-40da-82fd-2ebecfe49356